fUST/lending_fUST_20250908
["ID","MTS","AMOUNT","RATE_DAILY","PERIOD"]
[384133568,1757269832070,-300.0,0.00013696,2]
[384133569,1757269832080,-500.0,0.00013697,2]
[384133570,1757269832091,-500.0,0.00013697,2]
[384133571,1757269832101,-500.0,0.00013697,2]
[384133572,1757269832111,-537.41163725,0.00013697,2]
[384133574,1757269832120,-500.0,0.00013697,2]
[384133576,1757269832128,-500.0,0.00013697,2]
[384133578,1757269832138,-500.0,0.00013697,2]
[384133579,1757269832147,-500.0,0.00013697,2]
[384133580,1757269832156,-500.0,0.00013697,2]
[384133581,1757269832166,-500.0,0.00013697,2]
[384133582,1757269832175,-3333.6193885,0.00013697,2]
[384133583,1757269832184,-480.0,0.00013698,2]
[384133584,1757269832193,-587.63,0.00013698,2]
[384133585,1757269832203,-459.88488633,0.00013698,2]
[384133586,1757269832212,-480.0,0.00013698,2]
[384133587,1757269832222,-480.0,0.00013698,2]
[384133588,1757269832231,-480.0,0.00013698,2]
[384133589,1757269832241,-570.65,0.00013698,2]
[384133590,1757269832250,-480.0,0.00013698,2]
[384133591,1757269832259,-611.19,0.00013698,2]
[384133592,1757269832268,-480.0,0.00013698,2]
[384133593,1757269832278,-480.0,0.00013698,2]
[384133594,1757269832287,-512.34,0.00013698,2]
[384133595,1757269832297,-480.0,0.00013698,2]
[384133596,1757269832305,-480.0,0.00013698,2]
[384133597,1757269832315,-680.02,0.00013698,2]
[384133598,1757269832324,-611.82462032,0.00013698,2]
[384133599,1757269832333,-748.71,0.00013698,2]
[384133600,1757269832342,-480.0,0.00013698,2]
[384133601,1757269832352,-480.0,0.00013698,2]
[384133602,1757269832363,-480.0,0.00013698,2]
[384133603,1757269832372,-480.0,0.00013698,2]
[384133604,1757269832381,-480.0,0.00013698,2]
[384133605,1757269832391,-465.57669829,0.00013698,2]
[384133606,1757269832400,-562.93,0.00013698,2]
[384133607,1757269832409,-480.0,0.00013698,2]
[384133608,1757269832419,-480.0,0.00013698,2]
[384133609,1757269832429,-480.0,0.00013698,2]
[384133610,1757269832438,-731.77,0.00013698,2]
[384133611,1757269832447,-480.0,0.00013698,2]
[384133612,1757269832457,-480.0,0.00013698,2]
[384133613,1757269832466,-485.87,0.00013698,2]
[384133614,1757269832475,-480.0,0.00013698,2]
[384133615,1757269832484,-480.0,0.00013698,2]
[384133616,1757269832493,-446.47887486,0.00013698,2]
[384133617,1757269832502,-480.0,0.00013698,2]
[384133618,1757269832512,-480.0,0.00013698,2]
[384133619,1757269832521,-480.0,0.00013698,2]
[384133620,1757269832531,-732.27,0.00013698,2]
[384133621,1757269832540,-611.92,0.00013698,2]
[384133622,1757269832549,-806.34,0.00013698,2]
[384133623,1757269832559,-480.0,0.00013698,2]
[384133624,1757269832568,-523.74,0.00013698,2]
[384133625,1757269832578,-480.0,0.00013698,2]
[384133626,1757269832588,-645.9,0.00013698,2]
[384133627,1757269832597,-480.0,0.00013698,2]
[384133628,1757269832606,-915.28,0.00013698,2]
[384133629,1757269832616,-480.0,0.00013698,2]
[384133630,1757269832735,-480.0,0.00013698,2]
[384133631,1757269832746,-480.0,0.00013698,2]
[384133632,1757269832757,-480.0,0.00013698,2]
[384133633,1757269832766,-480.0,0.00013698,2]
[384133634,1757269832776,-531.65,0.00013698,2]
[384133635,1757269832787,-480.0,0.00013698,2]
[384133636,1757269832797,-480.0,0.00013698,2]
[384133637,1757269832807,-568.75,0.00013698,2]
[384133638,1757269832816,-487.51,0.00013698,2]
[384133639,1757269832825,-3117.82,0.00013698,2]
[384133640,1757269832835,-839.93,0.00013698,2]
[384133641,1757269832845,-604.58552623,0.00013698,2]
[384133642,1757269832854,-480.0,0.00013698,2]
[384133643,1757269832864,-480.0,0.00013698,2]
[384133644,1757269832877,-480.0,0.00013698,2]
[384133645,1757269832893,-916.61,0.00013698,2]
[384133646,1757269832903,-480.0,0.00013698,2]
[384133647,1757269832912,-2433.5,0.00013698,2]
[384133648,1757269832922,-480.0,0.00013698,2]
[384133649,1757269832931,-480.0,0.00013698,2]
[384133650,1757269832940,-546.89,0.00013698,2]
[384133651,1757269832950,-767.73,0.00013698,2]
[384133652,1757269832960,-1989.22,0.00013698,2]
[384133653,1757269832970,-480.0,0.00013698,2]
[384133654,1757269832979,-480.0,0.00013698,2]
[384133655,1757269832989,-1250.33,0.00013698,2]
[384133656,1757269832999,-480.0,0.00013698,2]
[384133657,1757269833008,-480.0,0.00013698,2]
[384133658,1757269833019,-1063.72,0.00013698,2]
[384133659,1757269833029,-480.0,0.00013698,2]
[384133660,1757269833038,-480.0,0.00013698,2]
[384133661,1757269833047,-501.17,0.00013698,2]
[384133662,1757269833056,-3382.64,0.00013698,2]
[384133663,1757269833066,-9860.72,0.00013698,2]
[384133664,1757269833075,-480.0,0.00013698,2]
[384133665,1757269833085,-1465.32,0.00013698,2]
[384133666,1757269833094,-994.47,0.00013698,2]
[384133667,1757269833104,-480.0,0.00013698,2]
[384133668,1757269833118,-3422.67,0.00013698,2]
[384133669,1757269833128,-908.58,0.00013698,2]
[384133670,1757269833137,-2061.62,0.00013698,2]
[384133671,1757269833147,-3535.95,0.00013698,2]
[384133672,1757269833157,-480.0,0.00013698,2]
[384133673,1757269833167,-1139.82,0.00013698,2]
[384133674,1757269833177,-480.0,0.00013698,2]
[384133675,1757269833189,-757.54888799,0.00013698,2]
[384133676,1757269833210,-1408.00111201,0.00013698,2]
[384133677,1757269833220,-480.0,0.00013698,2]
[384133678,1757269833230,-1377.44,0.00013698,2]
[384133679,1757269833241,-1435.16,0.00013698,2]
[384133680,1757269833253,-837.22,0.00013698,2]
[384133681,1757269833264,-3090.41,0.00013698,2]
[384133682,1757269833274,-480.0,0.00013698,2]
[384133683,1757269833285,-569.28,0.00013698,2]
[384133684,1757269833295,-480.0,0.00013698,2]
[384133685,1757269833305,-480.0,0.00013698,2]
[384133686,1757269833315,-480.0,0.00013698,2]
[384133687,1757269833325,-537.43538843,0.00013698,2]
[384133688,1757269833335,-480.0,0.00013698,2]
[384133689,1757269833345,-702.82,0.00013698,2]
[384133690,1757269833355,-480.0,0.00013698,2]
[384133691,1757269833366,-480.0,0.00013698,2]
[384133692,1757269833376,-913.23,0.00013698,2]
[384133693,1757269833386,-480.0,0.00013698,2]
[384133694,1757269833396,-598.41,0.00013698,2]
[384133695,1757269833406,-593.59,0.00013698,2]
[384133696,1757269833416,-993.7,0.00013698,2]
[384133697,1757269833426,-480.0,0.00013698,2]
[384133698,1757269833436,-498.64,0.00013698,2]
[384133699,1757269833447,-480.0,0.00013698,2]
[384133700,1757269833457,-480.0,0.00013698,2]
[384133701,1757269833468,-480.0,0.00013698,2]
[384133702,1757269833479,-581.94,0.00013698,2]
[384133703,1757269833488,-523.29134051,0.00013698,2]
[384133704,1757269833499,-2139.57,0.00013698,2]
[384133705,1757269833509,-480.0,0.00013698,2]
[384133706,1757269833519,-480.0,0.00013698,2]
[384133707,1757269833529,-5883.12,0.00013698,2]
[384133708,1757269833539,-480.0,0.00013698,2]
[384133709,1757269833549,-480.0,0.00013698,2]
[384133710,1757269833559,-480.0,0.00013698,2]
[384133711,1757269833570,-480.0,0.00013698,2]
[384133712,1757269833580,-5124.81,0.00013698,2]
[384133713,1757269833590,-1508.44,0.00013698,2]
[384133714,1757269833600,-836.91,0.00013698,2]
[384133715,1757269833610,-480.0,0.00013698,2]
[384133716,1757269833620,-1123.53,0.00013698,2]
[384133717,1757269833630,-1959.59,0.00013698,2]
[384133718,1757269833640,-480.0,0.00013698,2]
[384133719,1757269833650,-2534.78,0.00013698,2]
[384133720,1757269833660,-480.0,0.00013698,2]
[384133721,1757269833671,-480.0,0.00013698,2]
[384133722,1757269833680,-1990.82,0.00013698,2]
[384133723,1757269833690,-537.06,0.00013698,2]
[384133724,1757269833700,-480.0,0.00013698,2]
[384133725,1757269833715,-1741.68,0.00013698,2]
[384133726,1757269833730,-892.06,0.00013698,2]
[384133727,1757269833744,-480.0,0.00013698,2]
[384133728,1757269833756,-480.0,0.00013698,2]
[384133729,1757269833770,-492.98,0.00013698,2]
[384133730,1757269833784,-480.0,0.00013698,2]
[384133731,1757269833798,-480.0,0.00013698,2]
[384133732,1757269833813,-480.0,0.00013698,2]
[384133733,1757269833826,-480.0,0.00013698,2]
[384133734,1757269833840,-675.68,0.00013698,2]
[384133735,1757269833856,-2303.16,0.00013698,2]
[384133736,1757269833869,-480.0,0.00013698,2]
[384133737,1757269833883,-480.0,0.00013698,2]
[384133738,1757269833897,-784.4,0.00013698,2]
[384133739,1757269833911,-480.0,0.00013698,2]
[384133740,1757269833926,-865.46,0.00013698,2]
[384133741,1757269833940,-480.0,0.00013698,2]
[384133742,1757269833953,-800.91,0.00013698,2]
[384133743,1757269833965,-480.0,0.00013698,2]
[384133744,1757269833979,-820.59,0.00013698,2]
[384133745,1757269833992,-480.0,0.00013698,2]
[384133746,1757269834006,-487.19,0.00013698,2]
[384133747,1757269834021,-558.63,0.00013698,2]
[384133748,1757269834034,-599.81,0.00013698,2]
[384133749,1757269834048,-480.0,0.00013698,2]
[384133750,1757269834064,-851.59,0.00013698,2]
[384133751,1757269834080,-480.0,0.00013698,2]
[384133752,1757269834092,-502.34,0.00013698,2]
[384133753,1757269834103,-480.0,0.00013698,2]
[384133754,1757269834116,-480.0,0.00013698,2]
[384133755,1757269834130,-536.01,0.00013698,2]
[384133756,1757269834145,-656.13,0.00013698,2]
[384133757,1757269834160,-26242.29,0.00013698,2]
[384133758,1757269834172,-511.63,0.00013698,2]
[384133759,1757269834184,-500.0,0.00013698,2]
[384133760,1757269834198,-707.924892,0.00013699,2]
[384133761,1757269834210,-160.0,0.00013771,2]
[384133762,1757269834221,-160.0,0.00013771,2]
[384133763,1757269834233,-160.0,0.00013771,2]
[384133764,1757269834247,-417.15472785,0.00013771,2]
[384133765,1757269834259,-846.64878038,0.00013771,2]
[384133766,1757269834272,-203.24090201,0.00013771,2]
[384133767,1757269834284,-233.01044003,0.00013771,2]
[384133768,1757269834296,-217.60587337,0.00013771,2]
[384133769,1757269834308,-160.0,0.00013771,2]
[384133770,1757269834320,-530.64473063,0.00013771,2]
[384133771,1757269834332,-250.78331446,0.00013872,2]
[384133772,1757269834344,-250.10811194,0.00013917,2]
[384133773,1757269834358,-300.0,0.0001397,2]
[384133774,1757269834371,-300.0,0.0001397,2]
[384133775,1757269834383,-300.0,0.0001397,2]
[384133776,1757269834395,-300.0,0.0001397,2]
[384133777,1757269834407,-300.0,0.0001397,2]
[384133778,1757269834419,-300.0,0.0001397,2]
[384133779,1757269834431,-300.0,0.0001397,2]
[384133780,1757269834442,-300.0,0.0001397,2]
[384133781,1757269834454,-300.0,0.0001397,2]
[384133782,1757269834466,-300.0,0.0001397,2]
[384133783,1757269834478,-300.0,0.0001397,2]
[384133784,1757269834490,-300.0,0.0001397,2]
[384133785,1757269834502,-300.0,0.0001397,2]
[384133786,1757269834514,-300.0,0.0001397,2]
[384133787,1757269834526,-300.0,0.0001397,2]
[384133788,1757269834538,-600.0,0.0001397,2]
[384133789,1757269834550,-386.96644752,0.00013971,2]
[384133790,1757269834562,-587.63,0.00013972,2]
[384133791,1757269834574,-151.0,0.00013972,2]
[384133792,1757269834586,-480.0,0.00013972,2]
[384133793,1757269834599,-450.14025624,0.00013972,2]
[384133794,1757269834615,-29.85974376,0.00013972,2]
[384133795,1757269834627,-169.326286,0.00013972,2]
[384133796,1757269834639,-480.0,0.00013972,2]
[384133797,1757269834651,-570.65,0.00013972,2]
[384133798,1757269834662,-282.27105447,0.00013972,2]
[384133806,1757269837862,-492.94140847,0.00013698,2]
[384133807,1757269837872,-878.42,0.00013698,2]
[384133808,1757269837881,-480.0,0.00013698,2]
[384133809,1757269837891,-480.0,0.00013698,2]
[384133810,1757269837901,-197.72894553,0.00013972,2]
[384133811,1757269837911,-611.19,0.00013972,2]
[384133812,1757269837922,-512.34,0.00013972,2]
[384133813,1757269837932,-480.0,0.00013972,2]
[384133814,1757269837941,-480.0,0.00013972,2]
[384133815,1757269837950,-680.02,0.00013972,2]
[384133816,1757269837960,-748.71,0.00013972,2]
[384133817,1757269837969,-480.0,0.00013972,2]
[384133818,1757269837979,-480.0,0.00013972,2]
[384133819,1757269837988,-538.03047941,0.00013972,2]
[384133820,1757269837997,-562.93,0.00013972,2]
[384133821,1757269838008,-480.0,0.00013972,2]
[384133822,1757269838022,-480.0,0.00013972,2]
[384133823,1757269838032,-151.0,0.00013972,2]
[384133824,1757269838041,-151.0,0.00013972,2]
[384133825,1757269838052,-151.0,0.00013972,2]
[384133826,1757269838063,-731.77,0.00013972,2]
[384133827,1757269838073,-480.0,0.00013972,2]
[384133828,1757269838082,-480.0,0.00013972,2]
[384133829,1757269838093,-485.87,0.00013972,2]
[384133830,1757269838103,-480.0,0.00013972,2]
[384133831,1757269838113,-193.84988208,0.00013972,2]
[384133832,1757269838122,-480.0,0.00013972,2]
[384133833,1757269838132,-480.0,0.00013972,2]
[384133834,1757269838142,-480.0,0.00013972,2]
[384133835,1757269838152,-732.27,0.00013972,2]
[384133836,1757269838162,-611.92,0.00013972,2]
[384133837,1757269838172,-806.34,0.00013972,2]
[384133838,1757269838182,-23.62581288,0.00013972,2]
[384133839,1757269838194,-456.37418712,0.00013972,2]
[384133840,1757269838203,-523.74,0.00013972,2]
[384133841,1757269838214,-369.40581288,0.00013972,2]
[384133842,1757269838226,-110.59418712,0.00013972,2]
[384133843,1757269838236,-357.1892443,0.00013972,2]
[384133886,1757269840096,-500.0,0.00013697,2]
[384133887,1757269840111,-500.0,0.00013697,2]
[384133888,1757269840122,-253.5934727,0.00013697,2]
[384133889,1757269840131,-500.0,0.00013697,2]
[384133891,1757269840142,-500.0,0.00013697,2]
[384133893,1757269840151,-500.0,0.00013697,2]
[384133894,1757269840161,-500.0,0.00013697,2]
[384133896,1757269840183,-256.66618084,0.00013697,2]
[384133897,1757269840194,-180.17824572,0.00013697,2]
[384133898,1757269840204,-387.22734538,0.00013697,2]
[384133899,1757269840214,-500.0,0.00013697,2]
[384133901,1757269840224,-500.0,0.00013697,2]
[384133903,1757269840234,-500.0,0.00013697,2]
[384133905,1757269840245,-500.48859664,0.00013697,2]
[384133907,1757269840255,-288.7107557,0.00013972,2]
[384133910,1757269840265,-480.0,0.00013972,2]
[384133912,1757269840275,-915.28,0.00013972,2]
[384133914,1757269840286,-480.0,0.00013972,2]
[384133916,1757269840295,-512.89,0.00013972,2]
[384133918,1757269840305,-480.0,0.00013972,2]
[384133920,1757269840315,-480.0,0.00013972,2]
[384133922,1757269840326,-480.0,0.00013972,2]
[384133924,1757269840336,-531.65,0.00013972,2]
[384133926,1757269840346,-480.0,0.00013972,2]
[384133928,1757269840356,-480.0,0.00013972,2]
[384133930,1757269840366,-568.75,0.00013972,2]
[384133932,1757269840376,-487.51,0.00013972,2]
[384133934,1757269840386,-151.0,0.00013972,2]
[384133936,1757269840396,-325.81411107,0.00013972,2]
[384134541,1757269846207,-500.0,0.00013697,2]
[384134542,1757269846217,-500.0,0.00013697,2]
[384134543,1757269846226,-623.96340671,0.00013697,2]
[384134544,1757269846235,-480.0,0.00013698,2]
[384134545,1757269846245,-2332.1,0.00013698,2]
[384134546,1757269846254,-2792.00588893,0.00013972,2]
[384134548,1757269846407,-151.0,0.00013972,2]
[384134549,1757269846417,-546.89,0.00013972,2]
[384134550,1757269846426,-767.73,0.00013972,2]
[384134551,1757269846435,-1989.22,0.00013972,2]
[384134552,1757269846444,-193.61,0.00013972,2]
[384134553,1757269846453,-480.0,0.00013972,2]
[384134554,1757269846462,-1250.33,0.00013972,2]
[384134555,1757269846471,-480.0,0.00013972,2]
[384134556,1757269846480,-1063.72,0.00013972,2]
[384134557,1757269846489,-151.0,0.00013972,2]
[384134558,1757269846498,-480.0,0.00013972,2]
[384134559,1757269846507,-480.0,0.00013972,2]
[384134560,1757269846516,-501.17,0.00013972,2]
[384134561,1757269846525,-3382.64,0.00013972,2]
[384134562,1757269846534,-9860.72,0.00013972,2]
[384134563,1757269846544,-480.0,0.00013972,2]
[384134564,1757269846553,-1465.32,0.00013972,2]
[384134565,1757269846562,-994.47,0.00013972,2]
[384134566,1757269846572,-480.0,0.00013972,2]
[384134567,1757269846581,-151.0,0.00013972,2]
[384134568,1757269846590,-3422.67,0.00013972,2]
[384134569,1757269846598,-151.0,0.00013972,2]
[384134570,1757269846607,-908.58,0.00013972,2]
[384134571,1757269846616,-2061.62,0.00013972,2]
[384134572,1757269846626,-3535.95,0.00013972,2]
[384134573,1757269846634,-151.0,0.00013972,2]
[384134574,1757269846644,-151.0,0.00013972,2]
[384134575,1757269846653,-323.22853743,0.00013972,2]
[384134576,1757269846665,-156.77146257,0.00013972,2]
[384134577,1757269846674,-151.0,0.00013972,2]
[384134578,1757269846683,-14.33561637,0.00013972,2]
[384134579,1757269846694,-136.66438363,0.00013972,2]
[384134580,1757269846703,-1139.82,0.00013972,2]
[384134581,1757269846712,-480.0,0.00013972,2]
[384134582,1757269846721,-151.0,0.00013972,2]
[384134583,1757269846730,-119.73094637,0.00013972,2]
[384134584,1757269846741,-564.29349995,0.00013972,2]
[384134852,1757269962097,10000.01,0.00012928,2]
[384134853,1757269962119,10000.01,0.00012928,2]
[384134854,1757269962140,10000.01,0.00012928,2]
[384134855,1757269962163,10000.01,0.00012928,2]
[384134856,1757269962187,4202.1226919,0.00012928,2]
[384134858,1757270057914,155.26899005,0.00013598,2]
[384134863,1757270394346,155.26899005,0.00013598,2]
[384135002,1757270726671,155.26899005,0.00013598,2]
[384135008,1757270799365,224.78349446,0.00013274,2]
[384135009,1757270802265,898.23484385,0.00013274,2]
[384135017,1757270970528,557.52725228,0.00013274,2]
[384135019,1757270973054,2230.10900913,0.00013274,2]
[384135021,1757270975029,5012.72752526,0.00013274,2]
[384135071,1757271032217,-730.07117585,0.0001369,2]
[384135073,1757271032229,-263.02665592,0.0001369,2]
[384135075,1757271032239,-883.18937539,0.00013696,2]
[384135078,1757271032250,-316.81062461,0.00013696,2]
[384135080,1757271032260,-300.0,0.00013696,2]
[384135081,1757271032269,-500.0,0.00013697,2]
[384135083,1757271032278,-500.0,0.00013697,2]
[384135085,1757271032287,-274.80620456,0.00013697,2]
[384135087,1757271032297,-160.98965334,0.00013697,2]
[384135090,1757271032306,-500.0,0.00013697,2]
[384135091,1757271032316,-500.0,0.00013697,2]
[384135092,1757271032325,-500.0,0.00013697,2]
[384135093,1757271032335,-500.0,0.00013697,2]
[384135095,1757271032344,-500.0,0.00013697,2]
[384135097,1757271032354,-500.0,0.00013697,2]
[384135098,1757271032363,-433.81714312,0.00013697,2]
[384135099,1757271032373,-500.0,0.00013697,2]
[384135101,1757271032383,-500.0,0.00013697,2]
[384135102,1757271032392,-500.0,0.00013697,2]
[384135104,1757271032402,-500.0,0.00013697,2]
[384135106,1757271032411,-500.0,0.00013697,2]
[384135107,1757271032420,-500.0,0.00013697,2]
[384135108,1757271032430,-500.0,0.00013697,2]
[384135110,1757271032439,-500.0,0.00013697,2]
[384135112,1757271032448,-500.0,0.00013697,2]
[384135114,1757271032457,-500.0,0.00013697,2]
[384135115,1757271032466,-500.0,0.00013697,2]
[384135117,1757271032476,-555.0699509,0.00013697,2]
[384135119,1757271032486,-500.0,0.00013697,2]
[384135121,1757271032494,-500.0,0.00013697,2]
[384135122,1757271032504,-500.0,0.00013697,2]
[384135123,1757271032513,-500.0,0.00013697,2]
[384135125,1757271032523,-500.0,0.00013697,2]
[384135127,1757271032533,-500.0,0.00013697,2]
[384135128,1757271032542,-500.0,0.00013697,2]
[384135129,1757271032552,-500.0,0.00013697,2]
[384135130,1757271032561,-500.0,0.00013697,2]
[384135131,1757271032572,-539.93977362,0.00013697,2]
[384135132,1757271032582,-500.0,0.00013697,2]
[384135133,1757271032591,-500.0,0.00013697,2]
[384135134,1757271032601,-500.0,0.00013697,2]
[384135135,1757271032611,-500.0,0.00013697,2]
[384135136,1757271032621,-500.0,0.00013697,2]
[384135137,1757271032634,-500.0,0.00013697,2]
[384135138,1757271032644,-500.0,0.00013697,2]
[384135139,1757271032654,-500.0,0.00013697,2]
[384135140,1757271032663,-500.0,0.00013697,2]
[384135141,1757271032674,-500.0,0.00013697,2]
[384135142,1757271032684,-500.0,0.00013697,2]
[384135143,1757271032694,-500.0,0.00013697,2]
[384135144,1757271032708,-500.0,0.00013697,2]
[384135145,1757271032719,-500.0,0.00013697,2]
[384135146,1757271032729,-500.0,0.00013697,2]
[384135147,1757271032739,-499.99999999,0.00013697,2]
[384135148,1757271032749,-480.0,0.00013698,2]
[384135149,1757271032758,-480.0,0.00013698,2]
[384135150,1757271032768,-480.0,0.00013698,2]
[384135151,1757271032778,-501.41,0.00013698,2]
[384135152,1757271032788,-425.45,0.00013698,2]
[384135153,1757271032798,-480.0,0.00013698,2]
[384135154,1757271032807,-480.0,0.00013698,2]
[384135155,1757271032817,-623.35,0.00013698,2]
[384135156,1757271032826,-480.0,0.00013698,2]
[384135157,1757271032835,-480.0,0.00013698,2]
[384135158,1757271032844,-751.71,0.00013698,2]
[384135159,1757271032854,-686.32,0.00013698,2]
[384135160,1757271032863,-628.79,0.00013698,2]
[384135161,1757271032872,-480.0,0.00013698,2]
[384135162,1757271032883,-480.0,0.00013698,2]
[384135163,1757271032893,-480.0,0.00013698,2]
[384135164,1757271032903,-480.0,0.00013698,2]
[384135165,1757271032912,-516.01,0.00013698,2]
[384135166,1757271032921,-480.0,0.00013698,2]
[384135167,1757271032930,-480.0,0.00013698,2]
[384135168,1757271032939,-670.79,0.00013698,2]
[384135169,1757271032949,-480.0,0.00013698,2]
[384135170,1757271032958,-480.0,0.00013698,2]
[384135171,1757271032967,-480.0,0.00013698,2]
[384135172,1757271032977,-480.0,0.00013698,2]
[384135173,1757271032989,-480.0,0.00013698,2]
[384135174,1757271032998,-480.0,0.00013698,2]
[384135175,1757271033008,-560.92,0.00013698,2]
[384135176,1757271033017,-480.0,0.00013698,2]
[384135177,1757271033027,-480.1,0.00013698,2]
[384135178,1757271033037,-480.0,0.00013698,2]
[384135179,1757271033047,-480.0,0.00013698,2]
[384135180,1757271033057,-671.25,0.00013698,2]
[384135181,1757271033067,-592.07,0.00013698,2]
[384135182,1757271033077,-480.0,0.00013698,2]
[384135183,1757271033087,-480.0,0.00013698,2]
[384135184,1757271033097,-480.0,0.00013698,2]
[384135185,1757271033107,-480.0,0.00013698,2]
[384135186,1757271033116,-513.67,0.00013698,2]
[384135187,1757271033126,-480.0,0.00013698,2]
[384135188,1757271033135,-480.0,0.00013698,2]
[384135189,1757271033145,-480.0,0.00013698,2]
[384135190,1757271033155,-480.0,0.00013698,2]
[384135191,1757271033165,-480.0,0.00013698,2]
[384135192,1757271033174,-480.0,0.00013698,2]
[384135193,1757271033188,-934.18,0.00013698,2]
[384135194,1757271033197,-594.82,0.00013698,2]
[384135195,1757271033207,-2016.46,0.00013698,2]
[384135196,1757271033216,-1039.63,0.00013698,2]
[384135197,1757271033226,-480.0,0.00013698,2]
[384135198,1757271033237,-507.35,0.00013698,2]
[384135199,1757271033246,-480.0,0.00013698,2]
[384135200,1757271033256,-480.0,0.00013698,2]
[384135201,1757271033266,-480.0,0.00013698,2]
[384135202,1757271033276,-539.4,0.00013698,2]
[384135203,1757271033285,-480.0,0.00013698,2]
[384135204,1757271033295,-804.93,0.00013698,2]
[384135205,1757271033307,-480.0,0.00013698,2]
[384135206,1757271033318,-881.65,0.00013698,2]
[384135207,1757271033328,-480.0,0.00013698,2]
[384135208,1757271033338,-841.82,0.00013698,2]
[384135209,1757271033348,-703.75,0.00013698,2]
[384135210,1757271033358,-480.0,0.00013698,2]
[384135211,1757271033368,-480.0,0.00013698,2]
[384135212,1757271033378,-3387.99,0.00013698,2]
[384135213,1757271033387,-480.0,0.00013698,2]
[384135214,1757271033397,-545.56,0.00013698,2]
[384135215,1757271033407,-538.01627563,0.00013698,2]
[384135216,1757271033417,-279.82470707,0.00013698,2]
[384135217,1757271033426,-480.0,0.00013698,2]
[384135218,1757271033437,-521.35,0.00013698,2]
[384135219,1757271033446,-480.0,0.00013698,2]
[384135220,1757271033456,-1823.45,0.00013698,2]
[384135221,1757271033466,-3255.69,0.00013698,2]
[384135222,1757271033475,-480.0,0.00013698,2]
[384135223,1757271033485,-480.0,0.00013698,2]
[384135224,1757271033495,-480.0,0.00013698,2]
[384135225,1757271033505,-588.37967596,0.00013698,2]
[384135226,1757271033515,-480.0,0.00013698,2]
[384135227,1757271033525,-1998.45,0.00013698,2]
[384135228,1757271033534,-658.66,0.00013698,2]
[384135229,1757271033545,-3045.4,0.00013698,2]
[384135230,1757271033555,-975.08,0.00013698,2]
[384135231,1757271033564,-911.6,0.00013698,2]
[384135232,1757271033575,-480.0,0.00013698,2]
[384135233,1757271033584,-875.17,0.00013698,2]
[384135234,1757271033594,-385.90949756,0.00013698,2]
[384135235,1757271033608,-94.09050244,0.00013698,2]
[384135236,1757271033617,-545.52,0.00013698,2]
[384135237,1757271033628,-480.0,0.00013698,2]
[384135238,1757271033639,-802.33,0.00013698,2]
[384135239,1757271033648,-480.0,0.00013698,2]
[384135240,1757271033657,-1044.84,0.00013698,2]
[384135241,1757271033667,-480.0,0.00013698,2]
[384135242,1757271033795,-480.0,0.00013698,2]